Cogmind - Beta 14 @@@ ROGUE MODE // 2024.09.13 @ 19:33:28 Player: ILikeVoltron Result: Destroyed by X-67 Chaingunner with Minigun Performance ------------- Evolutions (3) 1500 Regions Visited (6) 1200 Robots Destroyed (111) 555 Value Destroyed (3139) 3139 Prototype IDs (4) 80 Alien Tech Used (0) 0 Bonus (368) 368 TOTAL SCORE: 6842 Bonus ------- High Alert Combat Kills 368 Cogmind --------- Core Integrity 0/700 Matter 480/500 Energy 118/150 System Corruption 1% Temperature Cool (0) Movement Walking (190) Ox1 Location -7/Factory Parts ------- > --- POWER (2) -------- Micro Nuclear Core > --- PROPULSION (4) --- Improved Carbon-fiber Leg > --- UTILITY (5) ------ Large Storage Unit High-capacity Matter Pod Transport Network Coupler Target Analyzer > --- WEAPON (2) ------- Kinetic Spear > --- INVENTORY (15) --- Improved Cloaking Device Damper Plating Improved Field Recycling Unit (0) Arc Projector Gauss Rifle Flak Gun Gauss Cannon Rocket Launcher Heavy Rocket Launcher Rocket Array Peak State ------------ > --- POWER ------------ Antimatter Reactor Antimatter Reactor > --- PROPULSION ------- Heavy Treads Heavy Treads > --- UTILITY ---------- Large Storage Unit Phase Shifter Improved Cloaking Device Propulsion Shielding Advanced System Restoration Module > --- WEAPON ----------- Gauss Rifle Heavy Pick > --- INVENTORY -------- Improved Cooling System High-capacity Matter Pod Seismic Detector Transport Network Coupler Advanced Targeting Computer Damper Plating Improved Field Recycling Unit Gauss Rifle Flak Gun Gauss Cannon Rocket Launcher Kinetic Spear [Rating: 72] Favorites ----------- Power Improved Ion Engine Engine Improved Ion Engine Power Core Light Nuclear Core Reactor Antimatter Reactor Propulsion Aluminum Leg Treads Light Treads Leg Aluminum Leg Wheel Armored Wheel Utility Large Storage Unit Device Heat Sink Storage Large Storage Unit Processor Improved Terrain Scan Processor Protection Propulsion Shielding Weapon Gauss Rifle Energy Gun Spread Laser Ballistic Gun Gauss Rifle Ballistic Cannon Gauss Cannon Launcher Heavy Rocket Launcher Slashing Weapon Mining Claw Piercing Weapon Heavy Pick Build | -11 -10 -9 -8 -7 -7 -7 ------- Run | Yrd Mat Mat Mat Fac Was Fac Slots Evolved 6 | . . 2 2 2 . . Power 1 | . . . . 1 . . Propulsion 2 | . . 1 . 1 . . Utility 3 | . . 1 2 . . . Weapon . | . . . . . . . Parts Attached 124 | 1 14 16 30 7 10 46 Power 13 | . 1 2 1 1 3 5 Engine 7 | . 1 2 1 1 . 2 Core 3 | . . . . . . 3 Reactor 3 | . . . . . 3 . Propulsion 29 | . 2 6 7 1 2 11 Treads 7 | . 1 1 3 . 2 . Leg 17 | . 1 5 3 1 . 7 Wheel 5 | . . . 1 . . 4 Hover . | . . . . . . . Flight . | . . . . . . . Utility 52 | 1 8 7 13 2 4 17 Device 34 | 1 4 5 10 . 4 10 Storage 6 | . 4 . . . . 2 Processor 4 | . . 1 . . . 3 Hackware . | . . . . . . . Protection 8 | . . 1 3 2 . 2 Artifact . | . . . . . . . Weapon 30 | . 3 1 9 3 1 13 Energy Gun 10 | . 2 1 6 . . 1 Energy Cannon . | . . . . . . . Ballistic Gun 6 | . . . 2 2 . 2 Ballistic Cannon 2 | . . . . 1 . 1 Launcher 5 | . . . . . . 5 Special Weapon . | . . . . . . . Impact Weapon . | . . . . . . . Slashing Weapon 2 | . 1 . 1 . . . Piercing Weapon 5 | . . . . . 1 4 Special Melee Weapon . | . . . . . . . Unidentified Prototypes 4 | . . . 2 . . 2 Parts Lost 38 | . 2 6 8 . . 22 Power 6 | . . 1 1 . . 4 Propulsion 13 | . . 2 3 . . 8 Utility 13 | . . 2 3 . . 8 Weapon 6 | . 2 1 1 . . 2 Highest Loss Streak 8 | . 1 2 4 . . 8 To Critical Strikes 2 | . . . 1 . . 1 Average Slot Usage (%) 90 | . 96 94 97 100 88 75 Engine 8 | . 14 10 8 15 3 1 Reactor 3 | . . . . . 11 7 Treads 8 | . 6 2 15 . 10 7 Leg 14 | . 21 28 8 30 8 4 Wheel 1 | . . . . . . 4 Device 16 | . 14 11 20 9 20 18 Storage 10 | . 14 11 9 7 7 11 Processor 3 | . . . 9 7 . 2 Protection 4 | . . 8 6 12 9 2 Energy Gun 9 | . 17 19 15 . . . Ballistic Gun 5 | . 5 . 1 13 7 5 Piercing Weapon 1 | . . . . . 6 4 Peak Build Rating 72 | 9 12 16 29 30 69 72 Average Rating 30 | 7 10 12 22 29 59 51 On Entrance 23 | 6 9 11 16 24 30 69 Naked Turns . | . . . . . . . Heaviest Build 94 | 13 94 35 42 48 65 70 Greatest Support 140 | 20 20 30 62 40 140 140 Greatest Overweight (x) 14 | . 4 1 3 1 2 14 Average Overweight (x) . | . 1 . . 1 . . Largest Inventory Capacity 25 | 8 25 15 15 15 15 15 Average Capacity 14 | 8 15 15 15 15 15 15 Most Carried 15 | 8 15 15 15 15 15 15 Average Carried 13 | 6 11 14 14 14 14 14 Final Capacity 15 | 8 15 15 15 15 15 15 Final Carried 15 | 8 15 15 15 15 15 13 Class Distribution -------------------- 49% | Scavenger-Mutant 42% | Mutant 4% | Scavenger-Skirmisher 3% | Gladiator Dominant Class ---------------- Mutant | -10/Materials Scavenger-Mutant | -9/Materials Scavenger-Mutant | -8/Materials Scavenger-Mutant | -7/Factory Scavenger-Mutant | -7/Waste Scavenger-Mutant | -7/Factory Resources | -11 -10 -9 -8 -7 -7 -7 ----------- Run | Yrd Mat Mat Mat Fac Was Fac Matter Collected 2095 | 230 346 105 245 125 201 843 Remotely 198 | . 198 . . . . . Salvage Created 3201 | 183 469 355 893 145 . 1156 Parts 206 | 13 31 27 51 12 . 72 Haulers Intercepted 7 | . 2 . 2 1 . 2 Recyclers Shooed 2 | . . 1 1 . . . Parts Field Recycled . | . . . . . . . Retrieved Matter . | . . . . . . . Parts Self-Destructed . | . . . . . . . Prevented . | . . . . . . . Kills | -11 -10 -9 -8 -7 -7 -7 ------- Run | Yrd Mat Mat Mat Fac Was Fac Combat Hostiles Destroyed 65 | . 13 11 15 . . 26 Melee 5 | . . . . . . 5 Guns 42 | . 13 10 13 . . 6 AOE 17 | . . 1 1 . . 15 Classes Destroyed 16 | 3 4 1 3 . . 5 Worker 10 | 2 3 1 . . . 4 Builder 12 | . . . 4 1 . 7 Tunneler 6 | 4 . . . 1 . 1 Hauler 7 | . 2 . 2 1 . 2 Recycler 4 | 1 . . . 1 . 2 Mechanic 1 | . . . . . . 1 Operator 2 | . . . 2 . . . Watcher 4 | . 1 1 1 . . 1 Swarmer 16 | . 6 3 3 . . 4 Grunt 28 | . 7 4 9 . . 8 Duelist 3 | . . . . . . 3 Sentry 7 | . . 4 2 . . 1 Specialist 3 | . . . . . . 3 Hunter 4 | . . . 1 . . 3 Programmer 3 | . . . . . . 3 Heavy 1 | . . . . . . 1 Best Kill Streak 8 | 4 5 5 7 1 . 8 Combat Bots Only 5 | . 4 4 3 . . 5 Max Kills in Single Turn 4 | 1 2 2 2 1 . 4 Gunslinging 1 | . 1 . 1 . . . Exploded 3 | . . 1 1 . . 3 Melee 1 | . . . . . . 1 Uniques/NPCs Destroyed . | . . . . . . . Combat | -11 -10 -9 -8 -7 -7 -7 -------- Run | Yrd Mat Mat Mat Fac Was Fac Hostile Shots Fired 496 | . 65 53 108 . . 270 Missed 139 | . 13 16 32 . . 78 Damage Taken 5830 | . 565 621 1071 . . 3573 Core 1072 | . 104 184 69 . . 715 Absorbed by Shields 165 | . . . 165 . . . Reduced by Siege Mode 7 | . . . . . . 7 Redirected to Shielding 105 | . . 55 . . . 50 Ignored by Resistances 129 | . . . 129 . . . Core Remaining (%) 74 | 100 58 54 87 . . . Volleys Fired 222 | 20 44 31 75 12 . 40 Largest 2 | 2 2 2 2 2 . 2 Hottest 130 | 60 130 130 121 56 . 76 Shots Fired 413 | 38 74 57 146 20 . 78 Gun 388 | 38 74 57 146 16 . 57 Cannon 8 | . . . . 4 . 4 Launcher 17 | . . . . . . 17 Special . | . . . . . . . Kinetic 121 | 20 20 . . 20 . 61 Thermal 236 | 18 54 57 107 . . . Explosive 17 | . . . . . . 17 Electromagnetic 39 | . . . 39 . . . Robot Hit Streak 26 | 8 8 10 26 6 . 7 Robot Miss Streak 11 | 3 11 6 5 10 . 3 Penetration Max 1 | . . . . . . 1 Secondary Targets 5 | . 1 1 3 . . . Max Gunslinging Chain 1 | . 1 1 1 . . . Shots Hit Robots 327 | 24 64 46 101 9 . 83 Core Hits 259 | 10 73 47 44 9 . 76 Critical Kills 1 | . . . . . . 1 Critical Parts Destroyed 1 | . 1 . . . . . Critical Strikes 13 | . 1 . 7 . . 5 Burn 7 | . . . 7 . . . Destroy 2 | . 1 . . . . 1 Blast 1 | . . . . . . 1 Impale 3 | . . . . . . 3 Melee Attacks 70 | . 10 . 6 3 . 51 Impact . | . . . . . . . Slashing 19 | . 10 . 6 3 . . Piercing 51 | . . . . . . 51 Sneak Attacks 13 | . 2 . . . . 11 Combat Hostiles . | . . . . . . . Follow-up Attacks 3 | . . . . . . 3 Damage Inflicted 9297 | 214 799 715 2006 168 . 5395 Guns 4116 | 214 701 688 1627 168 . 718 Cannons 66 | . . . . . . 66 Explosions 3389 | . . 27 379 . . 2983 Melee 1726 | . 98 . . . . 1628 Ramming . | . . . . . . . Kinetic 1176 | 118 106 . . 168 . 784 Thermal 2787 | 96 595 715 1381 . . . Explosive 2983 | . . . . . . 2983 Electromagnetic 625 | . . . 625 . . . Impact . | . . . . . . . Slashing 98 | . 98 . . . . . Piercing 1628 | . . . . . . 1628 Highest Corruption 1 | . 1 . . . . 1 Average Corruption 1 | . 1 . . . . 1 Corruption Purged . | . . . . . . . Corruption Blocked . | . . . . . . . Effects 9 | . 1 . . . . 8 Message Errors 1 | . . . . . . 1 Matter Fused 2 | . . . . . . 2 Energy Discharges 2 | . . . . . . 2 Data Loss (minor) 4 | . 1 . . . . 3 Overload Shots . | . . . . . . . Overflow Damage 474 | . 20 30 100 . . 324 Projectiles . | . . . . . . . Explosions 253 | . . 30 100 . . 123 Melee 221 | . 20 . . . . 201 Knockbacks . | . . . . . . . Impact . | . . . . . . . Kinetic . | . . . . . . . Secondary . | . . . . . . . Self-Inflicted Damage 956 | . . 164 224 . . 568 Shots 19 | . . 2 5 . . 12 Rammed . | . . . . . . . Targets Rammed 1 | . 1 . . . . . Kicked 1 | . 1 . . . . . Crushed . | . . . . . . . Highest Temperature 399 | 60 324 300 399 40 . 120 Average Temperature 85 | 22 103 108 84 20 . 55 Received Heat Transfer 1077 | . 225 150 429 . . 273 Effects 2 | . . . 2 . . . Shutdowns 1 | . . . 1 . . . Damage (minor) 1 | . . . 1 . . . Siege Activations 1 | . . . . . . 1 Total Turns 13 | . . . . . . 13 Longest Duration 13 | . . . . . . 13 Robots Corrupted . | . . . . . . . Combat Hostiles . | . . . . . . . Parts Fried 2 | . . . 2 . . . Impact Corruptions . | . . . . . . . Robots Melted 1 | . . . 1 . . . Combat Hostiles 1 | . . . 1 . . . Parts Melted 11 | . . 3 8 . . . Heat Transferred 5548 | 225 735 1304 3284 . . . Parts Sabotaged . | . . . . . . . Parts Stolen . | . . . . . . . Parts Stripped . | . . . . . . . Power Chain Reactions 4 | . . . 4 . . . Alert | -11 -10 -9 -8 -7 -7 -7 ------- Run | Yrd Mat Mat Mat Fac Was Fac Peak Influence 778 | 35 176 377 259 99 7 778 Initial 80 | . 22 8 74 80 7 . Average 175 | 12 76 175 160 74 4 409 Maximum Alert Level 3 | . . 1 1 . . 3 Low Security (%) 77 | 100 100 54 84 100 100 38 Level 1 8 | . . 45 15 . . 7 Level 2 5 | . . . . . . 23 Level 3 8 | . . . . . . 31 Level 4 . | . . . . . . . Level 5 . | . . . . . . . High Security . | . . . . . . . Max Security . | . . . . . . . Squads Dispatched 13 | . 1 . 4 . . 8 Investigation 3 | . . . 3 . . . Extermination 2 | . . . . . . 2 Reinforcement 7 | . 1 . 1 . . 5 Assault 1 | . . . . . . 1 Garrison . | . . . . . . . Intercept . | . . . . . . . Searches Triggered . | . . . . . . . Construction Impeded 1 | . . . . . . 1 Haulers Reinforced 1 | . . . . . . 1 Active Scanning Responses . | . . . . . . . Cargo Convoy Interrupts 1 | . . . . . . 1 Stealth | -11 -10 -9 -8 -7 -7 -7 --------- Run | Yrd Mat Mat Mat Fac Was Fac Distress Signals 5 | . . 2 3 . . . Communications Jammed . | . . . . . . . Distress Signals . | . . . . . . . Times Spotted 105 | . 19 16 23 4 . 43 Peak Tracking Total 12 | . 3 5 4 2 . 12 Tactical Retreats 2 | . 1 1 . . . . Traps | -11 -10 -9 -8 -7 -7 -7 ------- Run | Yrd Mat Mat Mat Fac Was Fac Traps Triggered 4 | . 1 1 . 1 . 1 Indirectly . | . . . . . . . Trap Hack Attempts . | . . . . . . . Triggered . | . . . . . . . Disarmed . | . . . . . . . Reprogrammed . | . . . . . . . Reused . | . . . . . . . Traps Extracted . | . . . . . . . Installed . | . . . . . . . Triggered . | . . . . . . . Machines | -11 -10 -9 -8 -7 -7 -7 ---------- Run | Yrd Mat Mat Mat Fac Was Fac Machines Disabled 29 | . . 2 5 . . 22 Max in Single Turn 6 | . . 2 3 . . 6 Machines Repaired . | . . . . . . . Machines Dismantled . | . . . . . . . Machines Sabotaged . | . . . . . . . Overloaded Fab Kills . | . . . . . . . Hacking | -11 -10 -9 -8 -7 -7 -7 --------- Run | Yrd Mat Mat Mat Fac Was Fac Machines Accessed 15 | . 6 1 6 1 . 1 Terminals 14 | . 6 1 6 1 . . Fabricators 1 | . . . . . . 1 Repair Stations . | . . . . . . . Recycling Units . | . . . . . . . Scanalyzers . | . . . . . . . Garrison Access . | . . . . . . . Total Hacks 37 | . 12 3 17 2 . 3 Successful 18 | . 7 3 8 . . . Failed 19 | . 5 . 9 2 . 3 Catastrophic 2 | . 1 . 1 . . . Database Lockouts . | . . . . . . . Manual 14 | . 4 3 7 . . . Terminals 34 | . 12 3 17 2 . . Fabricators 3 | . . . . . . 3 Repair Stations . | . . . . . . . Recycling Units . | . . . . . . . Scanalyzers . | . . . . . . . Garrison Access . | . . . . . . . Terminal Hacks 16 | . 7 2 7 . . . Part Schematic 1 | . . 1 . . . . Robot Schematic 1 | . 1 . . . . . Level Access Points 1 | . . . 1 . . . Branch Access Points 1 | . 1 . . . . . Emergency Access Points 2 | . 1 1 . . . . Terminal Index 1 | . 1 . . . . . Alert Level 3 | . 1 . 2 . . . Unreport Threat 1 | . . . 1 . . . Locate Traps 3 | . 2 . 1 . . . Patrol Status 1 | . . . 1 . . . Zone Layout 1 | . . . 1 . . . Fabricator Hacks . | . . . . . . . Repair Station Hacks . | . . . . . . . Recycling Unit Hacks . | . . . . . . . Scanalyzer . | . . . . . . . Garrison Access Hacks . | . . . . . . . Unauthorized Hacks 2 | . . 1 1 . . . Terminals 2 | . . 1 1 . . . Track 2 | . . 1 1 . . . Fabricators . | . . . . . . . Repair Stations . | . . . . . . . Recycling Units . | . . . . . . . Scanalyzers . | . . . . . . . Garrison Access . | . . . . . . . Data Cores Recovered . | . . . . . . . Used . | . . . . . . . Hacking Detections 12 | . 5 . 5 1 . 1 Full Trace Events 2 | . . . 2 . . . Feedback Events . | . . . . . . . Feedback Blocked . | . . . . . . . Robot Schematics Acquired 1 | . 1 . . . . . Robots Built . | . . . . . . . Authchips . | . . . . . . . Time . | . . . . . . . Total Robot Build Rating . | . . . . . . . Part Schematics Acquired 1 | . . 1 . . . . Parts Built . | . . . . . . . Authchips . | . . . . . . . Time . | . . . . . . . Total Part Build Rating . | . . . . . . . Parts Repaired . | . . . . . . . Time . | . . . . . . . Parts Recycled . | . . . . . . . Recycled Matter . | . . . . . . . Retrieved Matter . | . . . . . . . Retrieved Components . | . . . . . . . Parts Scanalyzed . | . . . . . . . Part Schematics Acquired . | . . . . . . . Parts Damaged . | . . . . . . . Bothacking | -11 -10 -9 -8 -7 -7 -7 ------------ Run | Yrd Mat Mat Mat Fac Was Fac Used RIF Installer . | . . . . . . . Robots Hacked . | . . . . . . . Non-combat . | . . . . . . . Combat . | . . . . . . . Robot Hacks Applied . | . . . . . . . Relay Couplers Released . | . . . . . . . Fabnet Peak Effective % . | . . . . . . . Robots Rewired . | . . . . . . . Allies Hacked . | . . . . . . . Hacks Repelled . | . . . . . . . Allies | -11 -10 -9 -8 -7 -7 -7 -------- Run | Yrd Mat Mat Mat Fac Was Fac Total Allies . | . . . . . . . Largest Group . | . . . . . . . Highest-Rated Group . | . . . . . . . Highest-Rated Ally . | . . . . . . . Total Orders . | . . . . . . . Ally Attacks . | . . . . . . . Total Damage . | . . . . . . . Kills . | . . . . . . . Allies Corrupted . | . . . . . . . Allies Melted . | . . . . . . . Intel | -11 -10 -9 -8 -7 -7 -7 ------- Run | Yrd Mat Mat Mat Fac Was Fac Robot Analysis Total . | . . . . . . . Derelict Logs Recovered . | . . . . . . . Drone Launches . | . . . . . . . Drone Recoveries . | . . . . . . . Exploration | -11 -10 -9 -8 -7 -7 -7 ------------- Run | Yrd Mat Mat Mat Fac Was Fac Turns Passed 5694 | 123 1458 442 1068 511 626 1466 Spaces Moved 2289 | 47 547 169 429 232 231 634 Core 43 | . . . . . . 43 Treads 1003 | . 184 . 305 . 144 370 Legs 1046 | 47 363 169 91 232 87 57 Wheels 197 | . . . 33 . . 164 Hover . | . . . . . . . Flight . | . . . . . . . Fastest Speed 90 | 120 120 120 120 190 160 90 Average Speed 187 | 120 228 188 169 190 171 174 Slowest Speed 750 | 120 480 190 240 190 260 750 Overloaded Moves . | . . . . . . . Propulsion Burnouts . | . . . . . . . Robots Hopped . | . . . . . . . Cave-ins Triggered . | . . . . . . . Exploration Rate (%) 37 | 5 78 25 38 7 85 21 Regions Visited 6 Branch Regions . Pre-discovered Areas . | . . . . . . . Known Exits Taken 1 | . . . 1 . . . Unknown Exits Taken 3 | 1 1 1 . . . . Scrap Searched . | . . . . . . . Spaces Dug 12 | . 6 . 1 . . 5 Terrain Destroyed 219 | . 6 29 57 2 . 125 Melee 12 | . 6 . 1 . . 5 Projectile 3 | . . . . 2 . 1 AOE 204 | . . 29 56 . . 119 Terrain Rammed . | . . . . . . . Walls Destroyed . | . . . . . . . Machines Disabled . | . . . . . . . Actions | -11 -10 -9 -8 -7 -7 -7 --------- Run | Yrd Mat Mat Mat Fac Was Fac Total 3169 | 79 667 231 614 278 466 834 Wait 359 | 10 27 7 43 14 202 56 Move 2284 | 46 546 168 428 232 230 634 Hop . | . . . . . . . Pick Up 46 | 2 14 6 12 5 4 3 Fast Attach 48 | 1 1 6 14 1 6 19 Attach 19 | . 1 4 6 2 1 5 Detach 4 | . . . 2 1 1 . Swap 57 | . 12 6 10 4 3 22 Drop 62 | . 11 3 18 4 16 10 Fire 222 | 20 44 31 75 12 . 40 Melee 64 | . 10 . 6 3 . 45 Ram . | . . . . . . . Kick 1 | . 1 . . . . . Crush . | . . . . . . . Escape Stasis . | . . . . . . . Rewire 3 | . . . . . 3 . Trap . | . . . . . . . Miscellaneous . | . . . . . . . Route ------- -11/Scrapyard -10/Materials (discovered 3 exits: *Mat x2 / Min) -9/Materials -8/Materials (discovered 3 exits: *Fac x3) -7/Factory -7/Waste -7/Factory (discovered 2 exits: [*Fac] / [*Low]) History --------- Turn | Location | Event 6 | -11/Scrapyard | Discovered new exit (range 3) 124 | -11/Scrapyard | Entered Materials 302 | -10/Materials | Build established: Mutant 497 | -10/Materials | Identified exit to Mines 662 | -10/Materials | Discovered new exit (range 12) 1475 | -10/Materials | Discovered new exit (range 5) 1582 | -10/Materials | Entered another Materials area 1582 | -9/Materials | Evolved 2 slots: Propulsion x1, Utility x1 1953 | -9/Materials | Build established: Scavenger-Mutant 1972 | -9/Materials | Discovered new exit (range 15) 2024 | -9/Materials | Entered another Materials area 2024 | -8/Materials | Evolved 2 slots: Utility x2 2423 | -8/Materials | Identified exit to Factory 2897 | -8/Materials | Lost 4 parts (1p1n1u1w) 3092 | -8/Materials | Entered Factory 3092 | -7/Factory | Evolved 2 slots: Power x1, Propulsion x1 3603 | -7/Factory | Sucked down chute 3603 | -7/Factory | Entered Waste 3603 | -7/Waste | The area was eerily silent 3769 | -7/Waste | Discovered new exit (range 11) 3809 | -7/Waste | Found Damper Plating 4229 | -7/Waste | Entered Factory 4309 | -7/Factory | Discovered new exit (range 5) 4743 | -7/Factory | Lost 3 parts (3u) 4847 | -7/Factory | Found Prototype Launcher 5029 | -7/Factory | First assault squad dispatched 5046 | -7/Factory | Lost 3 parts (2p1n) 5133 | -7/Factory | Core integrity fell below 50% 5166 | -7/Factory | Lost 6 parts (3n2u1w) 5247 | -7/Factory | Build established: Mutant 5254 | -7/Factory | Discovered new exit (range 15) 5458 | -7/Factory | Identified Rocket Array 5625 | -7/Factory | Cargo convoy interrupted 5687 | -7/Factory | Core integrity fell below 20% 5695 | -7/Factory | Destroyed by X-67 Chaingunner with Minigun Last Messages --------------- 05677_ Penetrated by Slug. 05677_ Seismic Detector destroyed. 05678_ Acquired 109 matter. 05679_ Arm. Wheel destroyed. 05680_ Slug penetrates Wall. 05680_ Arm. Wheel destroyed. 05683_ Slug penetrates Wall. 05683_ Lgt. Nuclear Core destroyed. 05683_ Penetrated by Slug. 05683_ Imp. Carbon-fiber Leg destroyed. 05683_ K-01 Serf collects debris. 05686_ Penetrated by Slug. 05686_ K-01 Serf collects debris. 05686_ X-62 Marksman destroyed. 05687_ Slug penetrates Wall. 05691_ Acquired Mic. Nuclear Core. 05691_ Slug penetrates Wall. 05693_ R-06 Scavenger collects Wheel. 05694_ Acquired Target Analyzer. 05695_ Slug penetrates Wall. Map ----- +----------------------------------------------------+ | ????????????????????????#############+######+##### | | ???????????????????????????# # # | | ???????????????????????????# """" """" # """ # | | ???????????????????????????# """" """" # """ # | | ???????????????????????????# """" """" # """ # | | ???????????????????????????# """"="""" # # | | ?????????????a?????????????# # """ # | | ???????????????????????????# """" """" # """ # | | ???????????????????????????# """" """" # """ ! + | | ???????????????????????????# """" """" # # | | ???????????????????????????# """" """" ########## | | ???????????????????????????# # #??## | | ???????????????????????????# ! # #### | | ???????????????????????????##+########### + | | ????????????????????????????# # #??# a#### | | ??????????????????????####### # #??# #??## | | ??????????????? + #??# #?? | | ??????????????????????####### # #??# !## "" | | ????????????????????????????# # #??# ! ## "" | | ????????????#???????????????# # #??# !!## R | | ????????????? ?????????????# #####+##??####### "" | | ?????????????##/#####???????# #???# #?????????# | | ?????????????A [ ????#??# #???# #????????##### | | ?????????????? =!???!### #???# #??????? | | ???????????????" """"r#######*##### #??????? | | ???????????????" """" x==@ kh!=%!% #??????? | | ???????????????" """"=#######+## #????????" | | ???????????????? """"*??? # ! #????????????? | | ???????????????? ???? # =**#????????????? | | ???????????????" """"???# """ #=* *#### | | ???????????????" """????# """ # **! | | ???????????????" """????# """ # | | ?????????????????""?????# # | | ????????????????????????#####+## | | ??????????????????????????????? | | ?????????????????????????????? | | ????????????????????????????? ^ | | ????????????????????????????# #### | | ????????????????????????????# #??? ?? | | ????????????????????????????# #???? ??? | | ????????????????????????????# #????? ???? | | ????????????????????????????# #????? ???? | | ????????????????????????????# #?????? ?????? | | ????????????????????????????+ #????????????? | | ????????????????????????????? ##### #????????????? | | ??????????????????????????????????? ?????????????? | | ?????????????????????????????????????????????????? | | ?????????????????????????????????????????????????? | | ?????????????????????????????????????????????????? | | ?????????????????????????????????????????????????? | +----------------------------------------------------+ Best States ------------- Heat Dissipation 88 Energy Generation 37 Energy Capacity 550 Matter Stores 500 Matter Capacity 500 Sight Range 16 Robot Scan Range 14 Terrain Scan Range 16 Terrain Scan Density 110 Cloak Strength 3 Additional Mass Support 6 Armor Coverage 300 Resistance: TH 10 Power Shielding 33 Propulsion Shielding 33 Weapon Shielding 33 Melee Speed Boost 20 Phase Shifting 5 Evasion (%) 55 Targeting Accuracy 8 Recoil Reduction 4 Item Schematics ----------------- Grenade Launcher | -9/Materials | Hacked Robot Schematics ------------------ G-34 Mercenary | -10/Materials | Hacked Fabricated ------------ Nothing Alien Tech Used ----------------- None Achievements -------------- None Challenges ------------ None Game ------ Seed PhysicsFusionTorch Manual? 0 Play Time 01:10:37 Cumulative 166.5 hours Start 2024.09.11 @ 12:40:56 End 2024.09.13 @ 19:33:28 Sessions 11 Manual Loads 0 Difficulty Rogue Special Mode None Game No. 303 Rogue 299 Adventurer 0 Explorer 4 Win Type - Total 0 Types 0/0/0/0/0/0/0/0/0 Lore% 20 Gallery% 46 Achievement% 35 Wizard Run 0 Options --------- Layout 1 ASCII 0 Keyboard 1 Movement Arrows Keybinds 0 Fullscreen 1 Font 32/SmallcapsGlow Map View 130x35 Zoom Use 0% Tactical HUD 1 Map Filters NONE Filters NONE Steam 0 RUN: d5873060-f94b-46a7-8fed-c5db5b28d7a5